[Event "Early-Titled-Tuesday-Blitz-October-03-2023"]
[Site "Chess.com"]
[Date "2023.10.03"]
[Round "6"]
[White "Alexchess1984"]
[Black "elmusmolamas"]
[Result "1-0"]
[WhiteElo "2718"]
[BlackElo "2527"]
[TimeControl "180+1"]
[EndTime "9:07:39 PDT"]
[Termination "Alexchess1984 won by resignation"]

1. e4 {[%clk 0:02:59.7]} 1... c5 {[%clk 0:02:59.2]} 2. c3 {[%clk 0:02:59.2]}
2... Nf6 {[%clk 0:02:57.7]} 3. e5 {[%clk 0:02:58.9]} 3... Nd5 {[%clk 0:02:58.4]}
4. Bc4 {[%clk 0:02:58.4]} 4... e6 {[%clk 0:02:57.3]} 5. Nf3 {[%clk 0:02:57.1]}
5... Nc6 {[%clk 0:02:56.9]} 6. d4 {[%clk 0:02:56.9]} 6... cxd4 {[%clk
0:02:56.2]} 7. cxd4 {[%clk 0:02:57.2]} 7... d6 {[%clk 0:02:56.5]} 8. O-O {[%clk
0:02:57.1]} 8... Nb6 {[%clk 0:02:51.5]} 9. Bb5 {[%clk 0:02:55.9]} 9... Bd7
{[%clk 0:02:45.4]} 10. Qe2 {[%clk 0:02:48.7]} 10... a6 {[%clk 0:02:36.4]} 11.
Bd3 {[%clk 0:02:47.7]} 11... Nb4 {[%clk 0:02:31.3]} 12. Nc3 {[%clk 0:02:45.6]}
12... Nxd3 {[%clk 0:02:31]} 13. Qxd3 {[%clk 0:02:46.5]} 13... Bc6 {[%clk
0:02:24.8]} 14. Bg5 {[%clk 0:02:38]} 14... Be7 {[%clk 0:02:23.6]} 15. Bxe7
{[%clk 0:02:37.6]} 15... Qxe7 {[%clk 0:02:24.5]} 16. Rfe1 {[%clk 0:02:33.8]}
16... O-O {[%clk 0:02:10.9]} 17. Ne4 {[%clk 0:02:30.6]} 17... dxe5 {[%clk
0:02:02]} 18. dxe5 {[%clk 0:02:25]} 18... Bxe4 {[%clk 0:01:33.3]} 19. Rxe4
{[%clk 0:02:10.7]} 19... Rfd8 {[%clk 0:01:23.6]} 20. Qb3 {[%clk 0:02:10]} 20...
Nd5 {[%clk 0:01:23.6]} 21. h4 {[%clk 0:02:07.3]} 21... Rac8 {[%clk 0:01:20.1]}
22. Rd1 {[%clk 0:02:04.3]} 22... Qc7 {[%clk 0:01:13.9]} 23. Red4 {[%clk
0:01:55]} 23... b5 {[%clk 0:00:53.1]} 24. R1d2 {[%clk 0:01:52.8]} 24... Nb6
{[%clk 0:00:51.7]} 25. Qd3 {[%clk 0:01:38]} 25... Rxd4 {[%clk 0:00:48.9]} 26.
Qxd4 {[%clk 0:01:38.9]} 26... h6 {[%clk 0:00:47.2]} 27. b3 {[%clk 0:01:35.9]}
27... Nd5 {[%clk 0:00:46.5]} 28. g3 {[%clk 0:01:27.3]} 28... Qc3 {[%clk
0:00:45.6]} 29. Kg2 {[%clk 0:01:23.6]} 29... Qxd4 {[%clk 0:00:45.2]} 30. Nxd4
{[%clk 0:01:23.8]} 30... g6 {[%clk 0:00:36.8]} 31. h5 {[%clk 0:01:23.2]} 31...
gxh5 {[%clk 0:00:34.2]} 32. Nf5 {[%clk 0:01:11.5]} 32... exf5 {[%clk 0:00:33.3]}
33. Rxd5 {[%clk 0:01:11]} 33... Rc2 {[%clk 0:00:30.3]} 34. a4 {[%clk 0:01:10.2]}
34... bxa4 {[%clk 0:00:23]} 35. bxa4 {[%clk 0:01:09.5]} 35... Rc6 {[%clk
0:00:19]} 36. Kf3 {[%clk 0:01:01.9]} 36... Kg7 {[%clk 0:00:18.5]} 37. a5 {[%clk
0:00:54.9]} 37... Re6 {[%clk 0:00:15.3]} 38. Kf4 {[%clk 0:00:54.2]} 38... Kg6
{[%clk 0:00:11.8]} 39. Rc5 {[%clk 0:00:53.9]} 39... f6 {[%clk 0:00:10.9]} 40.
exf6 {[%clk 0:00:47.8]} 40... Re4+ {[%clk 0:00:11.8]} 41. Kf3 {[%clk 0:00:46.4]}
41... Kxf6 {[%clk 0:00:12.7]} 42. Rc6+ {[%clk 0:00:46]} 42... Re6 {[%clk
0:00:13.4]} 43. Rc7 {[%clk 0:00:43.6]} 43... Re5 {[%clk 0:00:13.4]} 44. Rc6+
{[%clk 0:00:43.1]} 44... Re6 {[%clk 0:00:14.1]} 45. Rb6 {[%clk 0:00:41.9]} 45...
Ke5 {[%clk 0:00:12.4]} 46. Rb8 {[%clk 0:00:37.5]} 46... Rd6 {[%clk 0:00:10.3]}
47. Ke3 {[%clk 0:00:30.3]} 47... Kd5 {[%clk 0:00:09.5]} 48. Kf4 {[%clk
0:00:28.1]} 48... Kc4 {[%clk 0:00:05.3]} 49. Rb6 {[%clk 0:00:24.4]} 49... Kc5
{[%clk 0:00:03.8]} 50. Rxd6 {[%clk 0:00:21.2]} 50... Kxd6 {[%clk 0:00:04.7]} 51.
Kxf5 {[%clk 0:00:22.1]} 51... Kc5 {[%clk 0:00:05.6]} 52. Kg6 {[%clk 0:00:22.3]}
52... Kb5 {[%clk 0:00:06.5]} 53. f4 {[%clk 0:00:22.9]} 53... Kxa5 {[%clk
0:00:07.4]} 54. f5 {[%clk 0:00:23.5]} 54... Kb4 {[%clk 0:00:08.3]} 55. f6 {[%clk
0:00:23.4]} 55... a5 {[%clk 0:00:09.2]} 56. f7 {[%clk 0:00:23.6]} 56... a4
{[%clk 0:00:09.8]} 57. f8=Q+ {[%clk 0:00:24.1]} 57... Kb3 {[%clk 0:00:10.7]} 58.
Qf1 {[%clk 0:00:24.3]} 58... a3 {[%clk 0:00:11.6]} 59. Qa1 {[%clk 0:00:23.8]}
59... Kc4 {[%clk 0:00:12.5]} 1-0

[Event "Early-Titled-Tuesday-Blitz-October-03-2023"]
[Site "Chess.com"]
[Date "2023.10.03"]
[Round "6"]
[White "NovoselovRoman"]
[Black "BeautiFullMindChess"]
[Result "1-0"]
[WhiteElo "2610"]
[BlackElo "2387"]
[TimeControl "180+1"]
[EndTime "9:07:39 PDT"]
[Termination "NovoselovRoman won on time"]

1. e4 {[%clk 0:03:00]} 1... d5 {[%clk 0:03:00.1]} 2. exd5 {[%clk 0:02:59.7]}
2... Qxd5 {[%clk 0:03:01]} 3. Nc3 {[%clk 0:02:59.8]} 3... Qa5 {[%clk 0:03:00.8]}
4. Nf3 {[%clk 0:02:58.2]} 4... Nf6 {[%clk 0:03:00.6]} 5. Bc4 {[%clk 0:02:58.4]}
5... Nc6 {[%clk 0:02:51.6]} 6. h3 {[%clk 0:02:51.1]} 6... Bf5 {[%clk 0:02:49.3]}
7. d3 {[%clk 0:02:48.8]} 7... e6 {[%clk 0:02:42.1]} 8. O-O {[%clk 0:02:40.6]}
8... h6 {[%clk 0:02:29.5]} 9. Bd2 {[%clk 0:02:34.9]} 9... Bb4 {[%clk 0:02:24.9]}
10. a3 {[%clk 0:02:31.2]} 10... Bxc3 {[%clk 0:02:25]} 11. Bxc3 {[%clk
0:02:32.1]} 11... Qb6 {[%clk 0:02:25.4]} 12. Re1 {[%clk 0:02:18.2]} 12... O-O-O
{[%clk 0:02:24.1]} 13. b4 {[%clk 0:02:07.8]} 13... Nd5 {[%clk 0:02:12.9]} 14.
Bd2 {[%clk 0:01:15.6]} 14... g5 {[%clk 0:02:10.8]} 15. b5 {[%clk 0:00:21.9]}
15... Nd4 {[%clk 0:01:52.6]} 16. Bxd5 {[%clk 0:00:18.1]} 16... Rxd5 {[%clk
0:01:46]} 17. Be3 {[%clk 0:00:16.7]} 17... Nxf3+ {[%clk 0:01:44.2]} 18. Qxf3
{[%clk 0:00:17]} 18... Qd6 {[%clk 0:01:27.9]} 19. a4 {[%clk 0:00:17]} 19... Rg8
{[%clk 0:01:23.6]} 20. g4 {[%clk 0:00:16.6]} 20... Bg6 {[%clk 0:01:23.2]} 21.
Bxa7 {[%clk 0:00:13.4]} 21... h5 {[%clk 0:01:19.4]} 22. Be3 {[%clk 0:00:13.1]}
22... hxg4 {[%clk 0:01:12]} 23. hxg4 {[%clk 0:00:13.6]} 23... f5 {[%clk
0:01:12.3]} 24. a5 {[%clk 0:00:13.1]} 24... fxg4 {[%clk 0:00:57.6]} 25. Qxg4
{[%clk 0:00:13.3]} 25... Bf5 {[%clk 0:00:45.6]} 26. Qc4 {[%clk 0:00:11.6]} 26...
Rh8 {[%clk 0:00:38.4]} 27. Kf1 {[%clk 0:00:12.1]} 27... g4 {[%clk 0:00:11.3]}
28. a6 {[%clk 0:00:11.1]} 28... bxa6 {[%clk 0:00:10.5]} 29. bxa6 {[%clk
0:00:11]} 29... g3 {[%clk 0:00:10]} 30. a7 {[%clk 0:00:10.7]} 30... g2+ {[%clk
0:00:06.9]} 31. Ke2 {[%clk 0:00:10.6]} 31... Kd7 {[%clk 0:00:06.5]} 32. a8=Q
{[%clk 0:00:09.5]} 32... Rxa8 {[%clk 0:00:06.6]} 33. Rxa8 {[%clk 0:00:10.4]}
33... e5 {[%clk 0:00:05.1]} 34. Ra6 {[%clk 0:00:10.3]} 34... Be6 {[%clk
0:00:05.5]} 35. Rxd6+ {[%clk 0:00:10]} 35... cxd6 {[%clk 0:00:05.4]} 36. Qa4+
{[%clk 0:00:10.5]} 36... Ke7 {[%clk 0:00:05.3]} 37. Rg1 {[%clk 0:00:11.1]} 37...
e4 {[%clk 0:00:02.3]} 38. Qxe4 {[%clk 0:00:11.3]} 38... Rh5 {[%clk 0:00:01.3]}
39. Qh4+ {[%clk 0:00:12.2]} 39... Rxh4 {[%clk 0:00:01.5]} 40. Rxg2 {[%clk
0:00:12.8]} 40... Rh3 {[%clk 0:00:01.8]} 41. Rg3 {[%clk 0:00:12]} 41... Rh5
{[%clk 0:00:02.3]} 42. c4 {[%clk 0:00:11.5]} 42... Kd7 {[%clk 0:00:02.1]} 43.
Kd2 {[%clk 0:00:11.6]} 43... Kc6 {[%clk 0:00:02.5]} 44. Kc3 {[%clk 0:00:11.4]}
44... Bf5 {[%clk 0:00:02.5]} 45. Rg7 {[%clk 0:00:10.9]} 1-0

[Event "Early-Titled-Tuesday-Blitz-October-03-2023"]
[Site "Chess.com"]
[Date "2023.10.03"]
[Round "6"]
[White "NovikovaGalina"]
[Black "LoaySameer"]
[Result "1-0"]
[WhiteElo "2416"]
[BlackElo "2580"]
[TimeControl "180+1"]
[EndTime "9:07:40 PDT"]
[Termination "NovikovaGalina won by resignation"]

1. e4 {[%clk 0:03:00.9]} 1... g6 {[%clk 0:02:59.5]} 2. d4 {[%clk 0:03:00.2]}
2... Bg7 {[%clk 0:02:59.7]} 3. Nc3 {[%clk 0:03:01.1]} 3... d6 {[%clk 0:03:00]}
4. f3 {[%clk 0:03:01.7]} 4... a6 {[%clk 0:02:59.8]} 5. Be3 {[%clk 0:03:02.6]}
5... b5 {[%clk 0:03:00.2]} 6. Qd2 {[%clk 0:03:03.5]} 6... Bb7 {[%clk 0:03:00.7]}
7. O-O-O {[%clk 0:03:03.7]} 7... Nd7 {[%clk 0:03:01.3]} 8. g4 {[%clk 0:03:03.5]}
8... c5 {[%clk 0:03:00.5]} 9. h4 {[%clk 0:03:03.7]} 9... h5 {[%clk 0:03:00.3]}
10. gxh5 {[%clk 0:03:02.8]} 10... Rxh5 {[%clk 0:03:01.2]} 11. Nce2 {[%clk
0:02:59.1]} 11... Ngf6 {[%clk 0:02:57.5]} 12. Ng3 {[%clk 0:02:55.5]} 12... Rh8
{[%clk 0:02:57.4]} 13. N1e2 {[%clk 0:02:45.7]} 13... Qc7 {[%clk 0:02:43.7]} 14.
h5 {[%clk 0:02:33]} 14... Nxh5 {[%clk 0:02:38.8]} 15. Nxh5 {[%clk 0:02:32.8]}
15... gxh5 {[%clk 0:02:39.7]} 16. Ng3 {[%clk 0:02:32]} 16... cxd4 {[%clk
0:01:29.3]} 17. Bxd4 {[%clk 0:02:29.6]} 17... Bxd4 {[%clk 0:01:29.4]} 18. Qxd4
{[%clk 0:02:30.5]} 18... O-O-O {[%clk 0:01:30.1]} 19. Rxh5 {[%clk 0:02:06]}
19... Rxh5 {[%clk 0:01:25.3]} 20. Nxh5 {[%clk 0:02:06.9]} 20... Ne5 {[%clk
0:01:25.6]} 21. Be2 {[%clk 0:02:04.6]} 21... Nc6 {[%clk 0:01:02.3]} 22. Qc3
{[%clk 0:01:47.6]} 22... Rg8 {[%clk 0:00:54.9]} 23. Nf4 {[%clk 0:01:46.6]} 23...
Ne5 {[%clk 0:00:45.3]} 24. Qd2 {[%clk 0:01:32]} 24... Kb8 {[%clk 0:00:36.3]} 25.
a3 {[%clk 0:01:29.4]} 25... Rc8 {[%clk 0:00:32.6]} 26. Kb1 {[%clk 0:01:29.5]}
26... Nc4 {[%clk 0:00:29]} 27. Bxc4 {[%clk 0:01:28.6]} 27... Qxc4 {[%clk
0:00:29.9]} 28. Nd3 {[%clk 0:01:15.8]} 28... Qd4 {[%clk 0:00:24.7]} 29. Qa5
{[%clk 0:01:08.2]} 29... f5 {[%clk 0:00:20.6]} 30. exf5 {[%clk 0:00:55.2]} 30...
Bxf3 {[%clk 0:00:19.6]} 31. Re1 {[%clk 0:00:55.7]} 31... Be4 {[%clk 0:00:14.4]}
32. Qxa6 {[%clk 0:00:48.6]} 32... Bxd3 {[%clk 0:00:14.8]} 33. cxd3 {[%clk
0:00:49.3]} 33... Qxd3+ {[%clk 0:00:15.7]} 34. Ka1 {[%clk 0:00:49.9]} 34... Rc7
{[%clk 0:00:16.4]} 35. f6 {[%clk 0:00:47.5]} 35... Qd2 {[%clk 0:00:08.3]} 36.
Qxb5+ {[%clk 0:00:43.5]} 36... Rb7 {[%clk 0:00:08.2]} 37. Qe8+ {[%clk
0:00:43.2]} 37... Ka7 {[%clk 0:00:08.7]} 38. Qa4+ {[%clk 0:00:42.8]} 38... Kb8
{[%clk 0:00:09.3]} 39. Rb1 {[%clk 0:00:18.4]} 39... exf6 {[%clk 0:00:09.3]} 40.
Qe8+ {[%clk 0:00:19]} 40... Ka7 {[%clk 0:00:09.8]} 41. Qe6 {[%clk 0:00:17.7]}
41... Qd4 {[%clk 0:00:09.5]} 42. Qe2 {[%clk 0:00:12.3]} 42... Qe5 {[%clk
0:00:09.3]} 43. Qd2 {[%clk 0:00:11.7]} 43... Rb6 {[%clk 0:00:09.2]} 44. Rc1
{[%clk 0:00:09.8]} 44... Kb7 {[%clk 0:00:09]} 45. Qg2+ {[%clk 0:00:09.3]} 45...
d5 {[%clk 0:00:08.8]} 46. Rd1 {[%clk 0:00:09.6]} 46... Rd6 {[%clk 0:00:08.4]}
47. Qc2 {[%clk 0:00:08.9]} 47... Qe4 {[%clk 0:00:07.1]} 48. Qxe4 {[%clk
0:00:08.1]} 48... dxe4 {[%clk 0:00:03]} 49. Rxd6 {[%clk 0:00:09]} 49... f5
{[%clk 0:00:03.6]} 50. Rf6 {[%clk 0:00:08.2]} 50... e3 {[%clk 0:00:03.4]} 51.
Rxf5 {[%clk 0:00:08.6]} 51... e2 {[%clk 0:00:03.7]} 52. Re5 {[%clk 0:00:09.5]}
1-0

[Event "Early-Titled-Tuesday-Blitz-October-03-2023"]
[Site "Chess.com"]
[Date "2023.10.03"]
[Round "6"]
[White "FREDERICKtheMATE"]
[Black "MMAHDI2013"]
[Result "0-1"]
[WhiteElo "2598"]
[BlackElo "2429"]
[TimeControl "180+1"]
[EndTime "9:07:41 PDT"]
[Termination "MMAHDI2013 won by checkmate"]

1. Nf3 {[%clk 0:03:00.9]} 1... e6 {[%clk 0:02:56.7]} 2. d4 {[%clk 0:03:01.3]}
2... d5 {[%clk 0:02:56.5]} 3. c4 {[%clk 0:03:01.7]} 3... Nf6 {[%clk 0:02:56]} 4.
Nc3 {[%clk 0:03:01.9]} 4... Bb4 {[%clk 0:02:56]} 5. Bg5 {[%clk 0:03:00]} 5... h6
{[%clk 0:02:54.5]} 6. Bxf6 {[%clk 0:02:59.2]} 6... Qxf6 {[%clk 0:02:55.4]} 7.
Qb3 {[%clk 0:02:59.3]} 7... Nc6 {[%clk 0:02:53.5]} 8. e3 {[%clk 0:02:58.2]} 8...
O-O {[%clk 0:02:52.7]} 9. a3 {[%clk 0:02:53]} 9... Bxc3+ {[%clk 0:02:51.1]} 10.
Qxc3 {[%clk 0:02:53.9]} 10... Ne7 {[%clk 0:02:44.6]} 11. Bd3 {[%clk 0:02:47.5]}
11... c5 {[%clk 0:02:41.5]} 12. cxd5 {[%clk 0:02:38.4]} 12... cxd4 {[%clk
0:02:37.2]} 13. Qxd4 {[%clk 0:02:39.3]} 13... Nxd5 {[%clk 0:02:13]} 14. Qxf6
{[%clk 0:02:37.7]} 14... gxf6 {[%clk 0:02:12.5]} 15. Be4 {[%clk 0:02:37]} 15...
Nb6 {[%clk 0:01:48.8]} 16. Nd4 {[%clk 0:02:32.6]} 16... f5 {[%clk 0:01:34.1]}
17. Bf3 {[%clk 0:02:32.3]} 17... e5 {[%clk 0:01:32.9]} 18. Nb5 {[%clk
0:02:32.3]} 18... e4 {[%clk 0:01:32.5]} 19. Be2 {[%clk 0:02:32.2]} 19... a6
{[%clk 0:01:15.3]} 20. Nd4 {[%clk 0:02:30.1]} 20... Be6 {[%clk 0:01:03.2]} 21.
Rc1 {[%clk 0:02:27.9]} 21... Rac8 {[%clk 0:01:02.8]} 22. Kd2 {[%clk 0:02:27.4]}
22... Kg7 {[%clk 0:00:59.5]} 23. g3 {[%clk 0:02:21]} 23... Kf6 {[%clk
0:00:58.8]} 24. Rxc8 {[%clk 0:02:07.7]} 24... Rxc8 {[%clk 0:00:58.4]} 25. Rc1
{[%clk 0:02:06.9]} 25... Rxc1 {[%clk 0:00:54.3]} 26. Kxc1 {[%clk 0:02:07.8]}
26... Ke5 {[%clk 0:00:53.2]} 27. Kd2 {[%clk 0:02:07.5]} 27... Nd5 {[%clk
0:00:45.5]} 28. Bh5 {[%clk 0:01:46.4]} 28... f4 {[%clk 0:00:31.9]} 29. gxf4+
{[%clk 0:01:45]} 29... Nxf4 {[%clk 0:00:31.7]} 30. Nxe6 {[%clk 0:01:45]} 30...
Nxh5 {[%clk 0:00:26.4]} 31. Nc5 {[%clk 0:01:38.3]} 31... b6 {[%clk 0:00:23.3]}
32. Nxa6 {[%clk 0:01:37.9]} 32... Nf6 {[%clk 0:00:20.2]} 33. h3 {[%clk
0:01:34.2]} 33... Kd6 {[%clk 0:00:20]} 34. Nb4 {[%clk 0:01:32.6]} 34... Kc5
{[%clk 0:00:20]} 35. Kc3 {[%clk 0:01:32.7]} 35... Nh7 {[%clk 0:00:19.2]} 36. Nc2
{[%clk 0:01:26.4]} 36... Ng5 {[%clk 0:00:19.6]} 37. h4 {[%clk 0:01:25.8]} 37...
Nh3 {[%clk 0:00:20]} 38. b4+ {[%clk 0:01:23.1]} 38... Kd5 {[%clk 0:00:19.7]} 39.
Nd4 {[%clk 0:01:23.4]} 39... Nxf2 {[%clk 0:00:19.9]} 40. Nf5 {[%clk 0:01:23.3]}
40... Ng4 {[%clk 0:00:18.9]} 41. a4 {[%clk 0:01:21.7]} 41... Ke5 {[%clk
0:00:18.6]} 42. a5 {[%clk 0:01:12.3]} 42... bxa5 {[%clk 0:00:18.2]} 43. bxa5
{[%clk 0:01:13.2]} 43... Kxf5 {[%clk 0:00:12.4]} 44. a6 {[%clk 0:01:11.2]} 44...
Nxe3 {[%clk 0:00:12.9]} 45. Kd4 {[%clk 0:01:09.2]} 45... Nd5 {[%clk 0:00:09.6]}
46. Kxd5 {[%clk 0:01:07.4]} 46... e3 {[%clk 0:00:10.1]} 47. a7 {[%clk
0:01:04.6]} 47... e2 {[%clk 0:00:11]} 48. a8=Q {[%clk 0:01:04.2]} 48... e1=Q
{[%clk 0:00:11.9]} 49. Qf8 {[%clk 0:00:53.1]} 49... Qe6+ {[%clk 0:00:11.8]} 50.
Kd4 {[%clk 0:00:53]} 50... Qf6+ {[%clk 0:00:12]} 51. Ke3 {[%clk 0:00:51.1]}
51... Kg4 {[%clk 0:00:12.3]} 52. Qb4+ {[%clk 0:00:47.3]} 52... Kh5 {[%clk
0:00:11.5]} 53. Qe4 {[%clk 0:00:36.6]} 53... Qe6 {[%clk 0:00:11.4]} 54. Qxe6
{[%clk 0:00:34.4]} 54... fxe6 {[%clk 0:00:12.3]} 55. Kf4 {[%clk 0:00:35]} 55...
Kxh4 {[%clk 0:00:13.2]} 56. Ke5 {[%clk 0:00:35.6]} 56... h5 {[%clk 0:00:13.6]}
57. Kxe6 {[%clk 0:00:35.9]} 57... Kg4 {[%clk 0:00:14.5]} 58. Ke5 {[%clk
0:00:36.4]} 58... h4 {[%clk 0:00:15.4]} 59. Ke4 {[%clk 0:00:37]} 59... Kg3
{[%clk 0:00:16.3]} 60. Ke3 {[%clk 0:00:37.5]} 60... h3 {[%clk 0:00:17.2]} 61.
Ke2 {[%clk 0:00:37.7]} 61... Kg2 {[%clk 0:00:18.1]} 62. Ke3 {[%clk 0:00:37.5]}
62... h2 {[%clk 0:00:19]} 63. Kf4 {[%clk 0:00:37.2]} 63... h1=Q {[%clk
0:00:19.9]} 64. Kg4 {[%clk 0:00:37.4]} 64... Qf1 {[%clk 0:00:20.8]} 65. Kg5
{[%clk 0:00:38.2]} 65... Qf3 {[%clk 0:00:21.3]} 66. Kg6 {[%clk 0:00:39.1]} 66...
Kg3 {[%clk 0:00:22.2]} 67. Kg7 {[%clk 0:00:39.7]} 67... Qf4 {[%clk 0:00:23.1]}
68. Kg8 {[%clk 0:00:40.5]} 68... Kg4 {[%clk 0:00:24]} 69. Kh8 {[%clk 0:00:41.3]}
69... Qf5 {[%clk 0:00:24.9]} 70. Kg7 {[%clk 0:00:41.8]} 70... Kg5 {[%clk
0:00:25.2]} 71. Kh8 {[%clk 0:00:42.7]} 71... Kh6 {[%clk 0:00:24.6]} 72. Kg8
{[%clk 0:00:42.6]} 72... Qf2 {[%clk 0:00:24.2]} 73. Kh8 {[%clk 0:00:42.4]} 73...
Qf8# {[%clk 0:00:25.1]} 0-1

[Event "Early-Titled-Tuesday-Blitz-October-03-2023"]
[Site "Chess.com"]
[Date "2023.10.03"]
[Round "6"]
[White "AEMEffi"]
[Black "AlexandraSamaganova"]
[Result "1-0"]
[WhiteElo "2389"]
[BlackElo "2217"]
[TimeControl "180+1"]
[EndTime "9:07:43 PDT"]
[Termination "AEMEffi won on time"]

1. d4 {[%clk 0:03:00]} 1... Nf6 {[%clk 0:02:56]} 2. c4 {[%clk 0:03:00.4]} 2...
e6 {[%clk 0:02:55.7]} 3. g3 {[%clk 0:03:00.7]} 3... d5 {[%clk 0:02:52]} 4. Nf3
{[%clk 0:03:00.7]} 4... Be7 {[%clk 0:02:51.3]} 5. Bg2 {[%clk 0:03:01.2]} 5...
O-O {[%clk 0:02:51]} 6. O-O {[%clk 0:03:01.9]} 6... c6 {[%clk 0:02:50.3]} 7. Qc2
{[%clk 0:03:02.1]} 7... Nbd7 {[%clk 0:02:49.7]} 8. b3 {[%clk 0:02:59.3]} 8... b6
{[%clk 0:02:49.7]} 9. a4 {[%clk 0:02:58.7]} 9... Bb7 {[%clk 0:02:45.9]} 10. a5
{[%clk 0:02:57.3]} 10... c5 {[%clk 0:02:29.1]} 11. a6 {[%clk 0:02:53.8]} 11...
Bc6 {[%clk 0:02:26.3]} 12. Ne5 {[%clk 0:02:49.7]} 12... Nxe5 {[%clk 0:02:18.2]}
13. dxe5 {[%clk 0:02:50.6]} 13... Nd7 {[%clk 0:02:18.5]} 14. f4 {[%clk 0:02:38]}
14... Qc8 {[%clk 0:02:14.5]} 15. cxd5 {[%clk 0:02:18.5]} 15... Bxd5 {[%clk
0:02:08.1]} 16. e4 {[%clk 0:02:03.8]} 16... Bc6 {[%clk 0:02:07]} 17. Bb2 {[%clk
0:02:01.4]} 17... Rd8 {[%clk 0:01:30.8]} 18. f5 {[%clk 0:01:57.6]} 18... exf5
{[%clk 0:01:12.8]} 19. exf5 {[%clk 0:01:55.6]} 19... Bxg2 {[%clk 0:01:05.7]} 20.
Qxg2 {[%clk 0:01:56.5]} 20... Bg5 {[%clk 0:01:00.4]} 21. Ra4 {[%clk 0:01:37.3]}
21... Be3+ {[%clk 0:00:42.9]} 22. Kh1 {[%clk 0:01:36.9]} 22... Bd4 {[%clk
0:00:43.4]} 23. e6 {[%clk 0:01:13.5]} 23... Nf6 {[%clk 0:00:21]} 24. exf7+
{[%clk 0:01:04.5]} 24... Kxf7 {[%clk 0:00:20.7]} 25. Bxd4 {[%clk 0:01:05.1]}
25... Rxd4 {[%clk 0:00:19.7]} 26. Rxd4 {[%clk 0:01:03.3]} 26... cxd4 {[%clk
0:00:20.6]} 27. Nd2 {[%clk 0:00:58.6]} 27... Qe8 {[%clk 0:00:17]} 28. Nc4 {[%clk
0:00:57.8]} 28... Rd8 {[%clk 0:00:16.4]} 29. g4 {[%clk 0:00:51.8]} 29... h6
{[%clk 0:00:15.9]} 30. h4 {[%clk 0:00:44]} 30... Qe4 {[%clk 0:00:10]} 31. Qxe4
{[%clk 0:00:41.5]} 31... Nxe4 {[%clk 0:00:10.9]} 32. Kg2 {[%clk 0:00:41.7]}
32... d3 {[%clk 0:00:10.8]} 33. Kf3 {[%clk 0:00:36.5]} 33... Nc5 {[%clk
0:00:08.2]} 34. Rd1 {[%clk 0:00:30.2]} 34... Kf6 {[%clk 0:00:06.7]} 35. Ke3
{[%clk 0:00:27.3]} 35... Re8+ {[%clk 0:00:05.1]} 36. Kf4 {[%clk 0:00:26.6]}
36... Re4+ {[%clk 0:00:04.8]} 37. Kf3 {[%clk 0:00:26.6]} 37... Re8 {[%clk
0:00:03.8]} 38. Nd6 {[%clk 0:00:26.2]} 38... Rd8 {[%clk 0:00:03.7]} 39. Nb5
{[%clk 0:00:25.3]} 39... Nxb3 {[%clk 0:00:03.5]} 40. Nxa7 {[%clk 0:00:24.9]}
40... Ra8 {[%clk 0:00:03.2]} 41. Nc6 {[%clk 0:00:21.9]} 41... Rxa6 {[%clk
0:00:02.9]} 42. Rxd3 {[%clk 0:00:21.7]} 42... Nc5 {[%clk 0:00:03.1]} 43. Rd6+
{[%clk 0:00:20.8]} 43... Kf7 {[%clk 0:00:02.4]} 44. Ne5+ {[%clk 0:00:21.3]}
44... Kg8 {[%clk 0:00:02.6]} 45. Rd8+ {[%clk 0:00:21]} 45... Kh7 {[%clk
0:00:02.7]} 46. Ng6 {[%clk 0:00:21.4]} 46... Ra3+ {[%clk 0:00:02.4]} 47. Ke2
{[%clk 0:00:20.9]} 47... Ra2+ {[%clk 0:00:02.3]} 48. Ke3 {[%clk 0:00:20.8]}
48... Ra3+ {[%clk 0:00:02.5]} 49. Kf4 {[%clk 0:00:20.9]} 49... Ra4+ {[%clk
0:00:02.3]} 50. Kg3 {[%clk 0:00:21]} 50... Ra3+ {[%clk 0:00:02.4]} 51. Kg2
{[%clk 0:00:21.3]} 51... Ra2+ {[%clk 0:00:02.6]} 52. Kf1 {[%clk 0:00:21.7]}
52... Ra1+ {[%clk 0:00:03]} 53. Ke2 {[%clk 0:00:22.1]} 53... Ra2+ {[%clk
0:00:03.5]} 54. Kd1 {[%clk 0:00:22.7]} 54... Ra1+ {[%clk 0:00:02.3]} 55. Kc2
{[%clk 0:00:22.9]} 55... Ra2+ {[%clk 0:00:01.8]} 56. Kb1 {[%clk 0:00:22.9]}
56... Ra8 {[%clk 0:00:01.1]} 57. Rxa8 {[%clk 0:00:22.2]} 1-0